bitfinex/quotes_ETHUSD_20250322
["timestamp","ask_amount","ask_price","bid_price","bid_amount"]
[1742635724620,9.99869,2000.3,2000.0,26.80690578]
[1742635724800,4.99961,2000.2,2000.0,26.435]
[1742635725011,5.77175,2000.1,2000.0,31.181]
[1742635726323,0.772,2000.1,2000.0,31.181]
[1742635726518,4.99957,2000.2,2000.0,31.181]
[1742635727320,9.99924,2000.2,2000.0,31.181]
[1742635729091,9.99924,2000.2,2000.0,4.746]
[1742635732226,4.99975,2000.1,2000.0,4.746]
[1742635735392,5.00035,1999.9,1999.7,34.70294945]
[1742635735637,8.0005,1999.8,1999.7,32.418]
[1742635735947,8.0005,1999.8,1999.7,26.433]
[1742635737133,9.27017127,1999.8,1999.7,26.433]
[1742635737341,13.85872116,1999.8,1999.7,26.433]
[1742635737531,5.00125,1999.5,1999.4,4.736]
[1742635738248,5.77965,1999.5,1999.4,4.736]
[1742635738827,8.77965,1999.5,1999.4,4.736]
[1742635742051,10.0036,1999.3,1999.1,4.733]
[1742635742258,5.00175,1999.3,1999.1,8.34300839]
[1742635743866,10.0037,1999.3,1999.1,8.34300839]
[1742635744025,5.002,1999.2,1999.1,4.733]
[1742635745633,5.002,1999.2,1999.0,26.434]
[1742635745634,5.00225,1999.1,1999.0,26.434]
[1742635745834,5.00225,1999.1,1999.0,4.729]
[1742635746072,5.00225,1999.1,1998.8,31.38835692]
[1742635746350,5.00225,1999.1,1999.0,4.728]
[1742635748957,5.002,1999.2,1999.0,4.728]
[1742635749140,5.00158,1999.4,1999.0,9.01094989]
[1742635749339,5.00184,1999.3,1999.0,9.01094989]
[1742635750858,5.00184,1999.3,1999.1,0.7552]
[1742635751255,8.00128,1999.5,1999.1,5.75734]
[1742635751564,8.00128,1999.5,1999.2,3.81014989]
[1742635751753,5.0016,1999.4,1999.2,3.81014989]
[1742635752562,8.00128,1999.5,1999.2,3.81014989]
[1742635753229,3.0,1999.6,1999.3,5.00174]
[1742635753434,5.00149,1999.5,1999.2,4.76690088]
[1742635753758,5.00151,1999.4,1999.2,4.76690088]
[1742635753959,5.00151,1999.4,1999.1,0.7552]
[1742635754260,5.00175,1999.3,1999.1,0.7552]
[1742635754459,5.00175,1999.3,1999.0,8.53814989]
[1742635755355,5.00201,1999.2,1999.0,8.53814989]
[1742635755557,5.00201,1999.2,1999.0,10.56625788]
[1742635756367,5.00225,1999.1,1999.0,4.728]
[1742635757262,5.00206,1999.2,1998.9,0.7552]
[1742635757476,5.00206,1999.2,1999.0,4.729]
[1742635758467,10.00424,1999.2,1999.0,4.729]
[1742635759588,5.00206,1999.2,1999.0,4.729]
[1742635759987,5.00225,1999.1,1999.0,4.729]
[1742635760789,5.00207,1999.2,1999.0,4.729]
[1742635760995,10.00429,1999.2,1999.0,4.729]
[1742635761293,5.00207,1999.2,1999.0,4.729]
[1742635762614,5.00209,1999.2,1999.0,4.729]
[1742635763099,5.00209,1999.2,1999.0,7.01560878]
[1742635764496,5.00209,1999.2,1999.0,4.729]
[1742635765022,5.00209,1999.2,1999.0,7.01560878]
[1742635765965,5.00209,1999.2,1999.0,4.729]
[1742635766703,5.00209,1999.2,1999.0,7.01560878]
[1742635767101,5.00209,1999.2,1999.1,2.28660878]
[1742635767588,5.00209,1999.2,1999.1,2.75230922]
[1742635767990,5.00209,1999.2,1999.1,0.46570044]
[1742635771376,5.00209,1999.2,1999.0,4.729]
[1742635774781,10.00428,1999.2,1999.0,4.729]
[1742635774984,5.00225,1999.1,1999.0,4.729]
[1742635775801,5.00225,1999.1,1999.0,5.19482729]
[1742635776582,5.00209,1999.2,1999.0,5.19482729]
[1742635777115,10.00427,1999.2,1999.0,5.19482729]
[1742635777314,5.00209,1999.2,1999.0,4.729]
[1742635777531,10.00427,1999.2,1999.0,4.729]
[1742635778219,5.00209,1999.2,1999.0,4.729]
[1742635778819,5.00225,1999.1,1999.0,4.729]
[1742635779512,5.00209,1999.2,1999.0,7.01560878]
[1742635780113,5.00209,1999.2,1999.0,7.48132576]
[1742635780516,5.00209,1999.2,1999.0,8.24992576]
[1742635781315,5.00209,1999.2,1999.0,7.78420878]
[1742635781810,5.00187,1999.3,1999.0,7.78420878]
[1742635782883,5.00207,1999.2,1999.0,7.78420878]
[1742635783088,5.00155,1999.4,1999.1,2.28660878]
[1742635783317,5.00155,1999.4,1999.2,2.28660878]
[1742635785526,5.79145,1999.6,1999.2,7.28855878]
[1742635785731,5.00135,1999.5,1999.2,2.28660878]
[1742635785905,10.00279,1999.5,1999.2,2.28660878]
[1742635786094,5.00135,1999.5,1999.2,2.28660878]
[1742635786627,5.00135,1999.5,1999.3,2.28660878]
[1742635787036,5.00135,1999.5,1999.3,3.05520878]
[1742635787394,10.00278,1999.5,1999.2,2.28660878]
[1742635788322,5.00135,1999.5,1999.2,2.28660878]
[1742635788824,5.00135,1999.5,1999.1,8.65308097]
[1742635789129,5.00135,1999.5,1999.2,2.28660878]
[1742635791632,5.00135,1999.5,1999.3,4.729]
[1742635791931,5.0015,1999.4,1999.3,4.729]
[1742635794630,5.0015,1999.4,1999.3,7.01560878]
[1742635795593,5.0015,1999.4,1999.3,4.729]
[1742635798735,5.0015,1999.4,1999.3,7.01560878]
[1742635799136,5.0015,1999.4,1999.3,4.729]
[1742635799943,5.0015,1999.4,1999.3,7.01560878]
[1742635800345,5.00135,1999.5,1999.4,0.7714]
[1742635800543,5.00135,1999.5,1999.4,3.05800878]
[1742635802140,5.0015,1999.4,1999.2,8.86658314]
[1742635802343,5.00175,1999.3,1999.2,8.86658314]
[1742635802562,5.00175,1999.3,1999.2,13.59458314]
[1742635803244,5.00175,1999.3,1999.2,12.99960878]
[1742635806564,5.00175,1999.3,1999.2,7.01460878]
[1742635807154,5.00086,1999.7,1999.3,0.7714]
[1742635807451,4.99981,2000.1,1999.6,5.34461756]
[1742635807643,4.99958,2000.2,2000.0,2.28660878]
[1742635807848,4.99958,2000.2,2000.1,2.28660878]
[1742635808019,4.99958,2000.2,2000.1,7.01460878]
[1742635808225,9.99882,2000.3,2000.1,7.01460878]
[1742635808430,9.99882,2000.3,2000.2,2.28660878]
[1742635809054,9.99882,2000.3,2000.1,7.01460878]
[1742635809055,4.9995,2000.2,2000.1,7.01460878]
[1742635809222,4.9995,2000.2,2000.1,4.728]
[1742635811861,4.9995,2000.2,2000.1,5.10692483]
[1742635812659,5.5061,2000.2,2000.1,5.10692483]
[1742635816671,0.5066,2000.2,2000.1,5.10692483]
[1742635816874,5.5061,2000.2,2000.1,5.10692483]
[1742635817659,0.5066,2000.2,2000.1,12.52877985]
[1742635819732,0.5066,2000.2,2000.1,18.32202985]
[1742635820453,0.5066,2000.2,2000.1,13.32227985]
[1742635821170,0.5066,2000.2,2000.1,19.30727985]
[1742635821939,5.5061,2000.2,2000.1,11.09192483]
[1742635824741,0.5066,2000.2,2000.1,11.09192483]
[1742635827070,0.5066,2000.2,2000.1,5.10692483]
[1742635827871,0.5066,2000.2,2000.1,10.90217483]
[1742635831163,0.5066,2000.2,2000.1,13.18583238]
[1742635832276,0.5066,2000.2,2000.1,7.38758238]
[1742635833075,5.5061,2000.2,2000.1,5.10392483]
[1742635833279,0.5066,2000.2,2000.1,5.10392483]
[1742635833984,0.5066,2000.2,2000.1,7.38758238]
[1742635835155,0.5066,2000.2,2000.1,5.10392483]
[1742635837690,0.5066,2000.2,2000.1,5.56878505]
[1742635839386,0.5066,2000.2,2000.1,14.37556523]
[1742635839593,0.5066,2000.2,2000.1,15.15516523]
[1742635840588,0.5066,2000.2,2000.1,9.37581523]
[1742635841289,0.5066,2000.2,2000.1,14.37556523]
[1742635843689,0.5066,2000.2,2000.1,15.15516523]
[1742635843859,0.5066,2000.2,2000.1,41.58516523]
[1742635846090,0.5066,2000.2,2000.1,42.18020371]
[1742635847792,0.5066,2000.2,2000.1,42.64504989]
[1742635850709,0.5066,2000.2,2000.1,48.63004989]
[1742635851770,0.5066,2000.2,2000.1,51.63004989]
[1742635854717,0.5066,2000.2,2000.1,52.18004989]
[1742635857169,0.5066,2000.2,2000.1,50.65609216]
[1742635859167,0.5066,2000.2,2000.1,52.93916461]
[1742635859800,0.5066,2000.2,2000.1,50.65609216]
[1742635862314,0.5066,2000.2,2000.1,52.93916461]
[1742635862779,0.7628,2000.9,2000.7,4.99804]
[1742635862981,0.7628,2000.9,2000.8,12.00407245]
[1742635863384,3.7628,2001.1,2000.8,17.00207245]
[1742635863584,0.7628,2001.1,2001.0,2.28307245]
[1742635863802,0.7628,2001.1,2001.0,2.66557112]
[1742635864204,0.7628,2001.1,2001.0,7.66307112]
[1742635864883,0.7628,2001.3,2001.1,4.99715]
[1742635865095,0.7628,2001.3,2001.2,4.723]
[1742635865298,0.7628,2001.3,2001.2,9.72]
[1742635865499,0.7628,2001.5,2001.2,13.52243716]
[1742635865706,0.7628,2001.5,2001.3,8.79919716]
[1742635865880,0.7628,2001.5,2001.4,4.9965]
[1742635866200,0.7628,2001.8,2001.6,4.99596]
[1742635866402,0.7628,2001.8,2001.6,4.723]
[1742635866712,0.7628,2001.8,2001.7,8.79833716]
[1742635867014,4.99452,2002.2,2001.7,8.79833716]
[1742635867015,0.7628,2002.1,2001.8,4.99528]
[1742635867183,3.7628,2002.1,2001.8,8.79786716]
[1742635867518,0.7628,2002.1,2001.8,4.99528]
[1742635867815,3.7628,2002.1,2001.8,4.99528]
[1742635868521,0.7628,2002.1,2001.8,4.99528]
[1742635868817,0.7628,2002.1,2001.9,4.99516]
[1742635869020,0.7628,2002.1,2002.0,4.722]
[1742635869184,4.01705097,2002.2,2002.0,4.722]
[1742635869384,0.8103,2002.3,2002.0,4.722]
[1742635869585,0.8103,2002.3,2002.0,13.51949716]
[1742635869785,5.80456,2002.3,2002.0,9.71691]
[1742635869984,5.80456,2002.3,2002.0,4.722]
[1742635870385,4.99462,2002.2,2002.0,4.722]
[1742635870596,5.575112,2002.2,2002.0,4.722]
[1742635871295,4.99462,2002.2,2002.0,4.722]
[1742635871493,5.80505,2002.1,2002.0,5.09226384]
[1742635871893,5.80505,2002.1,2002.0,4.722]
[1742635872516,5.80505,2002.1,2001.9,5.985]
[1742635872819,5.80505,2002.1,2002.0,4.721]
[1742635874815,5.80505,2002.1,2001.6,41.20840716]
[1742635875019,4.99505,2002.0,2001.8,4.721]
[1742635875193,5.80505,2002.1,2001.8,5.10345591]
[1742635875404,0.8103,2002.1,2001.8,8.90604307]
[1742635875611,0.8103,2002.1,2001.8,13.90139307]
[1742635876022,0.8103,2002.1,2001.8,18.89674307]
[1742635878226,0.8103,2002.1,2001.9,4.99524]
[1742635878819,4.99427,2002.3,2001.9,5.79414]
[1742635879022,5.80442,2002.4,2002.0,8.79737716]
[1742635880203,4.99426,2002.3,2002.0,8.79737716]
[1742635882232,4.99426,2002.3,2001.9,10.98025]
[1742635882233,4.99426,2002.3,2001.9,10.98018]
[1742635882409,4.9946,2002.2,2001.9,5.985]
[1742635882934,0.7501,2002.1,2001.9,5.985]
[1742635884231,5.74507,2002.1,2001.9,5.985]
[1742635884410,5.74507,2002.1,2001.9,10.705]
[1742635884927,5.74437,2002.3,2001.9,15.70006]
[1742635885433,5.74437,2002.3,2001.9,20.6952]
[1742635885622,3.7501,2002.3,2002.0,8.79756716]
[1742635885999,3.7501,2002.3,2002.0,13.79248716]
[1742635886210,3.0,2002.3,2002.0,8.79750716]
[1742635886423,3.0,2002.3,2002.0,8.79747716]
[1742635887224,4.99404,2002.4,2002.1,4.99471]
[1742635887225,3.0,2002.4,2002.1,4.99471]
[1742635888233,7.99401,2002.4,2002.1,4.99471]
[1742635889144,0.7501,2002.5,2002.1,12.36484268]
[1742635889437,5.74336,2002.7,2002.4,3.80258716]
[1742635889734,4.99322,2002.8,2002.5,4.719]
[1742635889934,4.99322,2002.8,2002.5,9.71271]
[1742635890144,3.0,2002.7,2002.5,4.719]
[1742635891539,3.0,2002.7,2002.5,5.5445]
[1742635891738,8.74291,2002.9,2002.5,13.07018172]
[1742635891937,3.0,2002.7,2002.5,13.07018172]
[1742635892145,3.0,2002.7,2002.5,7.25097172]
[1742635892347,7.99339,2002.7,2002.5,4.719]
[1742635892731,8.7436,2002.6,2002.5,4.719]
[1742635893154,4.99393,2002.5,2002.3,5.985]
[1742635893342,4.99393,2002.5,2002.4,4.719]
[1742635893961,5.74403,2002.5,2002.4,4.719]
[1742635895166,10.99737772,2002.5,2002.4,4.719]
[1742635895477,8.74403,2002.5,2002.4,4.719]
[1742635896073,3.7501,2002.5,2002.4,4.719]
[1742635896261,8.74385,2002.5,2002.4,4.719]
[1742635897349,7.99375,2002.5,2002.4,4.719]
[1742635897678,3.0,2002.5,2002.4,4.719]
[1742635897835,7.99375,2002.5,2002.4,4.719]
[1742635898862,4.99375,2002.5,2002.4,4.719]
[1742635899354,5.81675,2002.5,2002.4,4.719]
[1742635899732,1.904032,2002.5,2002.1,26.405]
[1742635900055,4.99416,2002.4,2002.2,4.718]
[1742635900257,4.99425,2002.3,2002.2,4.718]
[1742635902673,4.99416,2002.4,2002.2,4.718]
[1742635902968,9.98769,2002.5,2002.2,5.4877]
[1742635903139,4.99409,2002.4,2002.2,5.4877]
[1742635903887,9.98828,2002.4,2002.2,5.4877]
[1742635904072,9.98828,2002.4,2002.2,4.718]
[1742635904652,4.99425,2002.3,2002.2,4.718]
[1742635905677,4.99405,2002.4,2002.2,4.718]
[1742635907766,4.99357,2002.6,2002.2,13.51508716]
[1742635907971,7.99357,2002.6,2002.2,13.51508716]
[1742635908376,5.81585,2002.9,2002.5,4.99352]
[1742635908583,4.9931,2002.8,2002.6,4.718]
[1742635908895,4.99325,2002.7,2002.4,3.80258716]
[1742635909200,4.99325,2002.7,2002.6,4.718]
[1742635909851,4.9931,2002.8,2002.6,4.718]
[1742635910252,9.98632,2002.8,2002.6,4.718]
[1742635910452,4.99325,2002.7,2002.6,4.718]
[1742635911695,4.9931,2002.8,2002.6,4.718]
[1742635912194,4.99325,2002.7,2002.6,4.718]
[1742635913910,8.81905,2002.7,2002.6,4.718]
[1742635914487,10.699542,2002.7,2002.6,4.718]
[1742635915486,8.81905,2002.7,2002.6,4.718]
[1742635922374,4.99355,2002.6,2002.3,4.718]
[1742635923015,4.99384,2002.5,2002.3,4.718]
[1742635923710,9.98778,2002.5,2002.3,4.718]
[1742635923911,4.99384,2002.5,2002.3,4.718]
[1742635924902,4.994,2002.4,2002.3,4.718]
[1742635925489,3.8258,2002.7,2002.3,9.71216]
[1742635925685,4.99356,2002.6,2002.3,4.718]
[1742635926612,9.98725,2002.6,2002.3,4.718]
[1742635927012,4.99378,2002.5,2002.3,4.718]
[1742635930213,4.99378,2002.5,2000.4,7.50568061]
[1742635930214,4.99405,2002.4,2001.9,6.18130523]
[1742635930412,7.99412,2002.4,2002.0,6.21158052]
[1742635930923,3.0,2002.4,2002.0,11.20634052]
[1742635931125,7.99402,2002.4,2002.0,1.21663052]
[1742635931425,4.9944,2002.3,2002.0,1.21663052]
[1742635931720,4.99475,2002.1,2001.9,5.5629]
[1742635932087,4.995,2002.0,2001.9,4.745]
[1742635932386,4.99525,2001.9,2001.8,37.135]
[1742635932587,4.99525,2001.9,2001.8,31.15]
[1742635932809,4.99525,2001.9,2001.8,26.403]
[1742635933012,4.99525,2001.9,2001.8,31.155]
[1742635933790,4.99583,2001.7,2001.5,0.8179]
[1742635933993,4.99626,2001.5,2001.3,27.2219]
[1742635934313,4.99626,2001.5,2001.4,4.753]
[1742635935014,4.9965,2001.4,2001.3,27.59867827]
[1742635935210,4.9965,2001.4,2001.3,31.53777827]
[1742635935513,4.9965,2001.4,2001.3,31.161]
[1742635935719,4.99626,2001.5,2001.3,31.161]
[1742635936217,9.99271,2001.5,2001.3,31.161]
[1742635936418,4.9965,2001.4,2001.3,31.161]
[1742635936917,4.9965,2001.4,2001.3,31.162]
[1742635937523,4.99626,2001.5,2001.3,31.9698]
[1742635937884,9.99271,2001.5,2001.3,31.9698]
[1742635938395,4.9965,2001.4,2001.3,31.9698]
[1742635938797,4.9965,2001.4,2001.3,31.162]
[1742635939340,7.99588,2001.7,2001.3,36.1587]
[1742635939624,7.99588,2001.7,2001.3,31.162]
[1742635939854,8.79867716,2001.6,2001.3,31.162]
[1742635940002,4.99641,2001.5,2001.3,31.162]
[1742635940520,9.99285,2001.5,2001.3,31.162]
[1742635941918,4.99641,2001.5,2001.3,31.162]
[1742635942522,4.99607,2001.6,2001.4,0.8047]
[1742635942706,4.99582,2001.7,2001.4,0.8047]
[1742635943706,9.99176,2001.7,2001.4,0.8047]
[1742635943907,4.99625,2001.5,2001.4,0.8047]
[1742635944207,13.79477716,2001.6,2001.3,31.162]
[1742635944406,4.9965,2001.4,2001.3,31.162]
[1742635946522,5.7787,2001.4,2001.3,31.162]
[1742635946891,5.7787,2001.4,2001.3,26.404]
[1742635947792,8.7787,2001.4,2001.3,26.404]
[1742635948521,8.7787,2001.4,2000.9,26.415]
[1742635948522,0.7822,2001.3,2000.9,26.415]
[1742635948728,4.9975,2001.0,2000.9,26.415]
[1742635948936,4.9975,2001.0,2000.9,31.174]
[1742635949436,0.7822,2001.3,2000.9,31.41273]
[1742635949598,4.99686,2001.3,2000.9,36.17073]
[1742635949800,4.99709,2001.2,2000.9,31.173]
[1742635950522,4.9968,2001.3,2000.9,41.16825]
[1742635950924,9.99377,2001.3,2000.9,36.53978864]
[1742635951341,4.9968,2001.3,2001.0,0.8047]
[1742635951498,8.79916716,2001.4,2001.0,4.53914386]
[1742635951822,4.99658,2001.4,2001.0,9.53654386]
[1742635951992,4.99658,2001.4,2001.0,9.53648386]
[1742635952328,4.99658,2001.4,2001.0,14.53382386]
[1742635953033,9.99327,2001.4,2001.0,9.53648386]
[1742635953195,9.99327,2001.4,2001.0,15.52148386]
[1742635953390,4.99678,2001.3,2001.0,10.52414386]
[1742635953717,4.99722,2001.2,2001.0,5.985]
[1742635953914,4.99725,2001.1,2001.0,10.74]
[1742635954230,4.99725,2001.1,2001.0,5.985]
[1742635955097,5.78165,2001.1,2001.0,5.985]
[1742635955829,8.78165,2001.1,2001.0,5.985]
[1742635956016,11.03947172,2001.1,2001.0,5.985]
[1742635957296,8.78165,2001.1,2001.0,5.985]
[1742635957691,4.99725,2001.1,2001.0,5.985]
[1742635959123,4.99725,2001.1,2000.9,26.415]
[1742635959124,9.99469,2001.1,2000.9,26.415]
[1742635959323,4.9975,2001.0,2000.9,26.415]
[1742635961332,4.99732,2001.1,2000.9,26.415]
[1742635961832,9.9948,2001.1,2000.9,26.415]
[1742635962134,4.99732,2001.1,2000.9,26.415]
[1742635962334,4.9975,2001.0,2000.9,26.415]
[1742635967133,4.99702,2001.2,2000.9,31.41272]
[1742635967298,4.99702,2001.2,2001.0,0.8231]
[1742635967504,14.74161682,2001.5,2001.1,4.742]
[1742635967706,4.99628,2001.5,2001.1,9.73908]
[1742635968224,4.99628,2001.5,2001.1,14.73622]
[1742635968421,4.99628,2001.5,2001.1,9.73908]
[1742635968641,4.99628,2001.5,2001.2,1.03211299]
[1742635969112,0.7667,2001.9,2001.3,5.81968]
[1742635969322,4.99592,2001.7,2001.3,0.8231]
[1742635969515,8.79916716,2001.4,2000.9,26.415]
[1742635969842,4.9975,2001.0,2000.9,26.415]
[1742635974945,4.99676,2001.3,2000.9,29.61401]
[1742635975123,4.997,2001.2,2001.0,0.7774]
[1742635975319,4.99676,2001.3,2001.1,4.783]
[1742635975830,4.997,2001.2,2001.1,4.783]
[1742635979418,4.99743,2001.1,2000.9,26.415]
[1742635979618,4.9975,2001.0,2000.9,26.415]
[1742635979952,4.9975,2001.0,2000.9,31.196]
[1742635980861,4.9975,2001.0,2000.9,26.415]
[1742635981064,6.95716172,2001.0,2000.9,26.415]
[1742635981276,4.9975,2001.0,2000.9,26.415]
[1742635981433,11.79944716,2001.3,2000.9,26.415]
[1742635981635,4.99726,2001.1,2000.9,26.415]
[1742635981949,4.99726,2001.1,2000.8,0.7774]
[1742635982143,5.79886,2001.3,2000.9,4.99751]
[1742635982374,4.99709,2001.2,2000.8,5.77533]
[1742635982535,9.99429,2001.2,2000.8,5.77533]
[1742635982731,4.99754,2001.0,2000.8,0.7774]
[1742635982964,4.99784,2000.9,2000.7,37.185]
[1742635983163,4.998,2000.8,2000.7,37.185]
[1742635983355,4.998,2000.8,2000.7,37.186]
[1742635983870,4.998,2000.8,2000.7,37.189]
[1742635985235,3.80258716,2001.3,2000.8,4.99789]
[1742635985672,4.9972,2001.2,2000.8,4.99789]
[1742635985871,4.9972,2001.2,2000.8,9.99576]
[1742635986166,8.79935716,2001.3,2000.9,5.77514]
[1742635986167,4.99688,2001.3,2000.9,5.77514]
[1742635986469,4.997,2001.2,2000.9,5.77514]
[1742635986666,4.99655,2001.4,2001.0,0.7774]
[1742635986867,4.99655,2001.4,2001.1,4.782]
[1742635987177,3.0,2001.5,2001.1,4.782]
[1742635987342,7.99634,2001.5,2001.1,9.77915]
[1742635987543,12.99278,2001.5,2001.1,9.77915]
[1742635987842,4.99652,2001.4,2001.1,9.77915]
[1742635988275,7.99634,2001.5,2001.1,9.77915]
[1742635988276,7.99633,2001.5,2001.1,9.77915]
[1742635988875,12.99277,2001.5,2001.1,9.77915]
[1742635989279,12.99277,2001.5,2001.1,11.9867357]
[1742635989441,4.99651,2001.4,2001.1,11.9867357]
[1742635991598,4.99651,2001.4,2001.1,38.4067357]
[1742635992791,4.99651,2001.4,2001.1,31.203]
[1742635992792,4.997,2001.2,2001.1,31.203]
[1742635993180,4.99686,2001.3,2001.1,31.203]
[1742635994486,9.99323,2001.4,2001.1,31.203]
[1742635994687,7.99627,2001.5,2001.1,36.20004]
[1742635995060,12.9927,2001.5,2001.1,36.20004]
[1742635995360,4.99655,2001.4,2001.1,36.20004]
[1742635996187,4.99655,2001.4,2001.2,4.781]
[1742635997597,4.99627,2001.5,2001.2,4.781]
[1742635997901,9.99264,2001.5,2001.2,4.781]
[1742635998269,4.99627,2001.5,2001.2,4.781]
[1742635998485,9.9927,2001.5,2001.2,4.781]
[1742635998880,4.99627,2001.5,2001.2,4.781]
[1742635999080,9.99219,2001.6,2001.3,0.812]
[1742635999287,4.99601,2001.6,2001.3,0.812]
[1742635999597,4.99641,2001.5,2001.3,0.812]
[1742635999786,4.9965,2001.4,2001.3,0.812]
[1742635999988,4.99641,2001.5,2001.3,0.812]
[1742636000301,9.99284,2001.5,2001.2,4.781]
[1742636000783,4.99641,2001.5,2001.2,4.781]
[1742636001400,9.99288,2001.5,2001.2,4.781]
[1742636001600,4.99641,2001.5,2001.2,4.781]
[1742636002599,4.99641,2001.5,2001.2,9.778]
[1742636002919,0.7649,2001.7,2001.2,4.781]
[1742636003117,8.76083,2001.7,2001.3,8.19781]
[1742636003285,7.99593,2001.7,2001.4,0.7551]
[1742636003485,10.94529966,2001.9,2001.4,0.7551]
[1742636003685,15.16674966,2001.9,2001.5,4.99615]
[1742636003914,3.0,2001.8,2001.6,4.771]
[1742636004115,3.0,2001.8,2001.6,5.823225]
[1742636004720,7.99555,2001.8,2001.6,5.823225]
[1742636005093,4.99503,2002.0,2001.7,0.7551]
[1742636005305,7.99528,2001.9,2001.7,0.7551]
[1742636005515,4.99562,2001.8,2001.6,5.823225]
[1742636005718,5.76962,2001.8,2001.6,5.823225]
[1742636005907,9.57220716,2001.8,2001.6,4.771]
[1742636006299,4.99575,2001.7,2001.6,4.771]
[1742636006830,7.99575,2001.7,2001.6,4.771]
[1742636017252,7.9954,2001.9,2001.6,5.5261]
[1742636017418,12.99087,2001.9,2001.6,5.5261]
[1742636017748,7.9954,2001.9,2001.6,5.5261]
[1742636018419,9.99084,2001.9,2001.6,5.5261]
[1742636020052,4.9954,2001.9,2001.6,5.5261]
[1742636020240,9.99084,2001.9,2001.6,5.5261]
[1742636022522,9.99084,2001.9,2001.6,5.5251]
[1742636023151,4.9954,2001.9,2001.6,5.5251]
[1742636026360,4.9954,2001.9,2001.6,10.52108]
[1742636027076,4.995,2002.0,2001.6,10.52092]
[1742636027479,12.98962,2002.1,2001.7,4.99558]
[1742636027627,7.99475,2002.1,2001.7,4.99558]
[1742636028331,7.99475,2002.1,2001.8,0.7945]
[1742636028667,4.99501,2002.0,2001.8,0.7945]
[1742636028824,4.99526,2001.9,2001.6,10.56048]
[1742636029240,4.99507,2002.0,2001.6,10.56036]
[1742636029443,4.99507,2002.0,2001.7,4.99574]
[1742636030561,9.99017,2002.0,2001.6,10.56036]
[1742636030939,4.99507,2002.0,2001.6,10.56036]
[1742636031629,4.99507,2002.0,2001.6,15.55621]
[1742636032262,4.99507,2002.0,2001.6,21.54121]
[1742636033369,4.99507,2002.0,2001.6,21.92103377]
[1742636033734,4.99529,2001.9,2001.6,11.92932377]
[1742636033932,4.99529,2001.9,2001.6,7.15932377]
[1742636034131,9.99075,2001.9,2001.7,4.734]
[1742636034331,11.15456391,2001.9,2001.7,4.734]
[1742636035463,6.15910391,2001.9,2001.7,4.734]
[1742636035759,4.99529,2001.9,2001.7,4.734]
[1742636037377,4.9955,2001.8,2001.7,4.734]
[1742636038782,9.99122,2001.8,2001.6,4.729]
[1742636039070,4.9955,2001.8,2001.6,4.728]
[1742636039269,9.99118,2001.8,2001.6,4.728]
[1742636039574,4.9955,2001.8,2001.6,4.728]
[1742636040775,4.996,2001.6,2001.5,37.125]
[1742636041843,4.99577,2001.7,2001.5,37.125]
[1742636042573,8.79810716,2001.8,2001.5,37.125]
[1742636043377,4.99576,2001.7,2001.5,37.125]
[1742636043947,4.99576,2001.7,2001.5,31.14]
[1742636044977,5.75825,2001.9,2001.5,36.95546]
[1742636045181,4.99535,2001.9,2001.5,36.95546]
[1742636045471,4.99501,2002.0,2001.5,31.9594]
[1742636045678,4.99501,2002.0,2001.6,9.99174]
[1742636045876,4.99501,2002.0,2001.6,4.99586]
[1742636047282,4.99501,2002.0,2001.5,36.95563]
[1742636047283,13.17079966,2002.1,2001.8,4.99531]
[1742636047576,13.17079966,2002.1,2001.7,5.81513]
[1742636048585,8.17598966,2002.1,2001.7,0.8194]
[1742636048874,4.99519,2002.0,2001.7,0.8194]
[1742636049074,4.99525,2001.9,2001.6,5.45879144]
[1742636049379,4.99525,2001.9,2001.6,4.996]
[1742636050082,5.75989,2002.0,2001.6,4.996]
[1742636050280,0.7647,2002.0,2001.7,4.99571]
[1742636050575,9.76840468,2002.1,2001.7,4.99571]
[1742636050951,4.99512,2002.0,2001.6,4.99595]
[1742636051690,9.76840468,2002.1,2001.6,4.99595]
[1742636051691,9.76837468,2002.1,2001.6,4.99588]
[1742636051882,14.76337468,2002.1,2001.7,4.99564]
[1742636052580,9.76837468,2002.1,2001.8,0.82]
[1742636054281,1.77357468,2002.1,2001.8,0.82]
[1742636054482,4.99503,2002.0,2001.6,5.83274992]
[1742636054675,4.99503,2002.0,2001.6,6.63394992]
[1742636055182,4.99503,2002.0,2001.6,6.17121582]
[1742636055505,4.99503,2002.0,2001.6,11.16703582]
[1742636055659,4.99503,2002.0,2001.6,6.17105582]
[1742636055992,4.99503,2002.0,2001.6,11.16688582]
[1742636056496,5.82646,2002.1,2001.7,4.99565]
[1742636056686,10.8214,2002.1,2001.7,4.99565]
[1742636057988,4.99505,2002.0,2001.6,6.17105582]
[1742636058394,4.99505,2002.0,2001.6,11.16687582]
[1742636058896,4.99505,2002.0,2001.6,11.16695582]
[1742636059055,4.99525,2001.9,2001.6,6.17105582]
[1742636060296,4.99525,2001.9,2001.5,42.12115]
[1742636060598,4.99579,2001.7,2001.5,32.398]
[1742636060982,4.99579,2001.7,2001.5,37.119]
[1742636061660,4.99579,2001.7,2001.5,31.134]
[1742636063569,4.996,2001.6,2001.5,31.134]
[1742636063762,4.996,2001.6,2001.5,26.413]
[1742636064097,6.45860772,2001.6,2001.5,26.413]